{"text_format":"1","workbook":"xlsx","n_sheets":3,"sheets":["Служебная записка","Приложение","выпадающий список (скрыть)"],"not_rendered":{"charts":0,"images":2,"macros":1,"external_links":0,"defined_names":5,"comments":0,"pivot_tables":0},"unopened":[],"bounds":{"document_bytes":16777216,"sheet_cells":100000,"rows_first":2000,"rows_last":500,"rows_between":2000,"halvings":0,"cell_chars":16384,"cell_head_chars":4096},"cells_cut":0,"cells_raw":0,"read":"whole","date_system":"1900"}

{"sheet":"Служебная записка","index":0,"n_rows":64,"n_cols":18,"rows_kept":64,"cut":false,"hidden":false,"merged":[[0,1,0,6],[1,1,2,6],[1,10,1,19],[2,10,2,19],[3,1,3,6],[3,10,3,19],[15,15,15,18],[16,15,17,18],[10,1,10,5],[10,8,10,19],[11,1,11,6],[11,8,11,19],[12,9,12,19],[13,8,13,19],[4,1,4,6],[4,10,4,19],[5,10,5,19],[6,10,6,19],[7,8,7,17],[9,1,9,7],[9,8,9,19],[17,1,17,4],[17,7,17,9],[17,11,17,13],[19,1,19,4],[19,7,19,19],[20,7,20,19],[21,7,21,9],[21,10,21,19],[22,10,22,19],[29,13,29,14],[29,16,29,19],[14,1,14,7],[14,8,14,19],[15,1,15,5],[15,7,15,9],[15,11,15,13],[23,3,23,4],[23,14,23,19],[24,3,24,4],[24,12,24,13],[24,14,24,19],[27,2,27,6],[27,8,27,11],[27,13,27,14],[27,16,27,19],[28,2,28,6],[28,8,28,11],[28,13,28,14],[28,16,28,19],[26,14,26,16],[26,17,26,19],[31,2,31,6],[31,8,31,11],[31,13,31,14],[31,16,31,19],[32,13,32,14],[32,16,32,19],[30,2,30,6],[30,8,30,11],[30,13,30,14],[30,16,30,19],[36,6,36,13],[36,14,36,19],[37,14,37,19],[46,8,46,10],[46,11,46,13],[47,8,47,15],[47,17,47,19],[33,2,33,6],[33,8,33,11],[33,13,33,14],[33,16,33,19],[34,2,34,6],[34,8,34,11],[34,13,34,14],[34,16,34,19],[56,1,57,4],[56,6,56,7],[56,9,56,10],[57,6,57,7],[57,9,57,10],[58,6,59,7],[58,9,59,10],[48,8,48,15],[48,17,48,19],[49,13,49,19],[50,13,50,19],[52,1,53,5],[52,6,52,7],[52,9,52,10],[52,12,52,19],[53,6,53,7],[53,9,53,10],[63,15,63,17],[63,18,63,19],[60,1,60,5],[60,6,60,7],[60,9,60,10],[61,6,62,7],[61,9,62,10],[63,1,63,5],[63,6,63,7],[63,9,63,10]]}
[null,"ПЭО  в реестр",null,null,null,null,null,null,null,null,"Ректору ОмГУ"]
[]
[null,null,null,null,null,null,null,null,null,null,"от кого (должность руководителя структурного подразделения)"]
[null,"(дата, подпись)"]
[null,null,null,null,null,null,null,null,null,null,"(ФИО руководителя структурного подразделения)"]
[]
[null,null,null,null,null,null,null,null,null,null,"СЛУЖЕБНАЯ ЗАПИСКА"]
[null,null,null,null,null,null,null,null,"на оплату товаров, выполнение работ, услуг              "]
[]
["1.","ПРОШУ ПРОИЗВЕСТИ ОПЛАТУ ЗА "]
[null,null,null,null,null,null,null,null,"указать наименование товара, выполнение работ, услуг, согласно счета иди заключенного договора"]
["1.1","Цель приобретения товаров, работ, услуг"]
[null,null,null,null,null,null,null,null,null,"указать цель приобретения товара, выполнение работ, услуг"]
["1.2","Срок службы товара"]
[null,"     ",null,null,null,null,null,null,"указать срок службы товара, предназначенного для длительного использования"]
["2.","ПО ДОГОВОРУ",null,null,null,null,"№",null,null,null,"дата",null,null,null,null,"№ ЗАЯВКИ на закупку "]
[]
["3.","ПО СЧЕТУ",null,null,null,null,"№",null,null,null,"дата"]
[]
["4.","КОНТРАГЕНТ"]
[null,null,null,null,null,null,null,"указать полное наименование контрагента (поставщика), согласно счета или заключенного договора"]
["5.","СУММА К ОПЛАТЕ",null,null,null,null,null,null,null,null,{"$f":"NumTranslate(H22,1,\"рубль,\",\"рубля,\",\"рублей,\",\"коп.\",\"коп.\",\"коп.\")","v":"Рублей, 00 коп."}]
[null,null,null,null,null,null,null,null,null,null,"сумма прописью"]
[null,null,null,"100% ",null,null,"% аванса",null,null,"% окончательного расчета"]
[null,null,null,"оплата",null,null,null,null,null,null,null,null,null,null,"период оплаты (месяц / квартал / год)"]
["5.1","Распределение расходов по источникам оплаты"]
[null,null,null,"средства ОмГУ",null,null,null,null,null,null,null,null,null,null,"средства лицевого счета"]
[]
[null,null,"указать сумму",null,null,null,null,null,"указать источник",null,null,null,null,"указать аббревиатуру ЛС",null,null,"указать сумму"]
[null,null,null,"средства от НИД"]
[null,null,null,null,null,null,null,null,null,null,null,null,null,"указать аббревиатуру ЛС",null,null,"указать сумму"]
[null,null,"указать сумму",null,null,null,null,null,"указать № научного проекта"]
[null,null,null,"средства от пожертвования",null,null,null,null,null,null,null,null,null,"указать аббревиатуру ЛС",null,null,"указать сумму"]
[]
[null,null,"указать сумму",null,null,null,null,null,"указать реквизиты договора",null,null,null,null,"указать аббревиатуру ЛС",null,null,"указать сумму"]
["6.","РАСПРЕДЕЛЕНИЕ РАСХОДОВ ПО ОБЪЕКТАМ"]
[null,null,null,null,null,null," для одного объекта (указать для какого)"]
[null,null,null,null,null,null,null,null,null,null,null,null,null,null,"№ корпуса, № аудитории / кабинета"]
[null,null,null,null,null,null,"для нескольких объектов, согласно Приложению к служебной записке*"]
[]
["7.","СОПРОВОДИТЕЛЬНЫЕ ДОКУМЕНТЫ"]
[null,null,null,null,null,null,"договор",null,null,null,"счет",null,null,null,"акт",null,"счет-фактура"]
[]
[null,null,null,null,null,null,"товарная накладная",null,null,null,"универсальный ",null,null,null,null,null,"экспертное "]
[null,null,null,null,null,null,null,null,null,null,"передаточный документ",null,null,null,null,null,"заключение"]
["7.1","При проведении мероприятий"]
[null,null,null,null,null,null,"приказ   №",null,null,null,null,"дата"]
["8.","ОТВЕТСТВЕННОЕ ЛИЦО:"]
[null,null,null,null,null,null,null,null,"должность, наименование подразделения, ФИО, контактный телефон",null,null,null,null,null,null,null,null,"подпись"]
[null,"Оригиналы документов обязуюсь предоставить в срок до:"]
[null,null,null,null,null,null,null,null,null,null,null,null,null,"в случае предоставления копий / сканов платежных документов"]
[]
[null,"Руководитель управления\nподразделения,  научного проекта",null,null,null,null,null,null,null,null,null,null,"Отметка планово-экономического отдела:"]
[null,null,null,null,null,null,"подпись, дата",null,null,"расшифровка подписи"]
[null,"СОГЛАСОВАНО"]
[]
[null,"Проректор"]
[null,null,null,null,null,null,"подпись, дата",null,null,"расшифровка подписи"]
[null,"Отдел закупок"]
[null,"и снабжения"]
[null,null,null,null,null,null,"дата",null,null,"отметка об исполнении"]
[null,"Отдел учета "]
[null,"нефинансовых активов"]
[null,"(при отсутствии договора)",null,null,null,null,"подпись, дата",null,null,"КОСГУ"]

{"sheet":"Приложение","index":1,"n_rows":35,"n_cols":8,"rows_kept":35,"cut":false,"hidden":false,"merged":[[6,0,6,1],[6,2,6,4],[6,6,6,8],[0,3,0,8],[2,0,2,8],[4,0,4,3],[4,4,4,8],[5,4,5,8],[8,1,8,2],[8,3,8,5],[8,6,8,8],[9,1,9,2],[9,3,9,5],[9,6,9,8],[10,1,10,2],[10,3,10,5],[10,6,10,8],[11,1,11,2],[11,3,11,5],[11,6,11,8],[12,1,12,2],[12,3,12,5],[12,6,12,8],[13,1,13,2],[13,3,13,5],[13,6,13,8],[14,1,14,2],[14,3,14,5],[14,6,14,8],[15,1,15,2],[15,3,15,5],[15,6,15,8],[16,1,16,2],[16,3,16,5],[16,6,16,8],[17,1,17,2],[17,3,17,5],[17,6,17,8],[18,1,18,2],[18,3,18,5],[18,6,18,8],[19,1,19,2],[19,3,19,5],[19,6,19,8],[20,1,20,2],[20,3,20,5],[20,6,20,8],[21,1,21,2],[21,3,21,5],[21,6,21,8],[22,1,22,2],[22,3,22,5],[22,6,22,8],[23,1,23,2],[23,3,23,5],[23,6,23,8],[24,1,24,2],[24,3,24,5],[24,6,24,8],[25,1,25,2],[25,3,25,5],[25,6,25,8],[26,1,26,2],[26,3,26,5],[26,6,26,8],[27,1,27,2],[27,3,27,5],[27,6,27,8],[28,1,28,2],[28,3,28,5],[28,6,28,8],[32,2,32,3],[32,7,32,8],[29,1,29,5],[29,6,29,8],[31,0,31,1],[31,2,31,3],[31,7,31,8]]}
[null,null,null,"Приложение к служебной записке *"]
[]
["Распределение расходов по объектам ОмГУ (п. 6 служебной записки)"]
[]
["Наименование и реквизиты документа - основания:"]
[null,null,null,null,"(наименование и реквизиты документа-основания)"]
["№ платежного документа:",null,null,null,null,"дата документа"]
[]
["№, п/п","Объект ОмГУ",null,"Наименование товара / Вид работ, услуг",null,null,"Сумма, руб."]
[1,"Учебный корпус № 1,\nпр-кт Мира, д. 55А",null,null,null,null,0]
[2,"Учебный корпус № 2,\nпр-кт Мира, д. 55",null,null,null,null,0]
[3,"Учебный корпус № 3,\nул. Андрианова, д. 28",null,null,null,null,0]
[4,"Учебный корпус № 4,\nул. Нефтезаводская, д. 11",null,null,null,null,0]
[5,"Учебный корпус № 5,\nул. Красный путь, д. 36",null,null,null,null,0]
[6,"Учебный корпус № 6,\nпл. Лицкевича, д. 1",null,null,null,null,0]
[7,"Учебный корпус № 7,\nул. 50 лет Профсоюзов, д. 100/1",null,null,null,null,0]
[8,"Учебный корпус № 8,\nул. Пригородная, д. 10, пом. 1П",null,null,null,null,0]
[9,"Учебный корпус № 9,\nул. Гуртьева д. 1Б",null,null,null,null,0]
[10,"Учебный корпус № 11,\nул. 10 лет Октября, д. 195/18",null,null,null,null,0]
[11,"Главный корпус,\nул. Фрунзе, д. 6",null,null,null,null,0]
[12,"Общежитие № 1,\nул. Пригородная, д. 9/1",null,null,null,null,0]
[13,"Общежитие № 2,\nул. Пригородная, д. 9/2",null,null,null,null,0]
[14,"БО Аэлита,\nул. Курортная, № 17",null,null,null,null,0]
[15,"СОК / бассейн,\nпр-кт Мира, д.82 / ул. Лицкевича, д.1 ",null,null,null,null,0]
[16,"МИБИ, ул. пр-кт Мира, д. 55/2",null,null,null,null,0]
[17,"Хозяйственный двор",null,null,null,null,0]
[18,"Гараж, ул. Андрианова, д. 30А",null,null,null,null,0]
[19,"Столовая, ул. пр-кт Мира, д. 55/1",null,null,null,null,0]
[20,"Цетральный склад, пр-кт Мира, д. 55А",null,null,null,null,0]
[null,"ИТОГО:",null,null,null,null,{"$f":"SUM(G10:I29)","v":0}]
[]
["Руководитель подразделения"]
[null,null,"расшифровка подписи",null,null,"подпись",null,"дата"]
["*","Данная таблица заполняется, при распределении расходов по нескольким объектам ОмГУ"]
["**","Незаполненные строки рекомендуется скрыть / удалить"]

{"sheet":"выпадающий список (скрыть)","index":2,"n_rows":42,"n_cols":4,"rows_kept":42,"cut":false,"hidden":true,"merged":[[2,0,2,2]]}
[]
[]
["Перечень лицевых счетов подразделений ОмГУ "]
[]
[]
["№, п/п","Аббревиатура лицевого счета","Наименование лицевого счета","Выпадающий список"]
[1,"Аспирантура",null,{"$f":"Таблица2[[#This Row],[Аббревиатура лицевого счета]]","v":"Аспирантура"}]
[2,"СФ_И","Факультет истории, теологии и мировых культур",{"$f":"IF(Таблица2[[#This Row],[Аббревиатура лицевого счета]]=\"\",\"\",IF(Таблица2[[#This Row],[Наименование лицевого счета]]=\"\",Таблица2[[#This Row],[Аббревиатура лицевого счета]],CONCATENATE(Таблица2[[#This Row],[Аббревиатура лицевого счета]],\" - \",Таблица2[[#This Row],[Наименование лицевого счета]])))","v":"СФ_И - Факультет истории, теологии и мировых культур"}]
[10,"СФ_Ю","Юридический факультет",{"$f":"IF(Таблица2[[#This Row],[Аббревиатура лицевого счета]]=\"\",\"\",IF(Таблица2[[#This Row],[Наименование лицевого счета]]=\"\",Таблица2[[#This Row],[Аббревиатура лицевого счета]],CONCATENATE(Таблица2[[#This Row],[Аббревиатура лицевого счета]],\" - \",Таблица2[[#This Row],[Наименование лицевого счета]])))","v":"СФ_Ю - Юридический факультет"}]
[12,"СФ_Э","Факультет экономики, психологии и менеджмента",{"$f":"IF(Таблица2[[#This Row],[Аббревиатура лицевого счета]]=\"\",\"\",IF(Таблица2[[#This Row],[Наименование лицевого счета]]=\"\",Таблица2[[#This Row],[Аббревиатура лицевого счета]],CONCATENATE(Таблица2[[#This Row],[Аббревиатура лицевого счета]],\" - \",Таблица2[[#This Row],[Наименование лицевого счета]])))","v":"СФ_Э - Факультет экономики, психологии и менеджмента"}]
[22,"СФ_К","Факультет культуры и искусств",{"$f":"IF(Таблица2[[#This Row],[Аббревиатура лицевого счета]]=\"\",\"\",IF(Таблица2[[#This Row],[Наименование лицевого счета]]=\"\",Таблица2[[#This Row],[Аббревиатура лицевого счета]],CONCATENATE(Таблица2[[#This Row],[Аббревиатура лицевого счета]],\" - \",Таблица2[[#This Row],[Наименование лицевого счета]])))","v":"СФ_К - Факультет культуры и искусств"}]
[30,"СФ_К_ДОП","Факультет культуры и искусств (дополнительные программы)",{"$f":"IF(Таблица2[[#This Row],[Аббревиатура лицевого счета]]=\"\",\"\",CONCATENATE(Таблица2[[#This Row],[Аббревиатура лицевого счета]],\" - \",Таблица2[[#This Row],[Наименование лицевого счета]]))","v":"СФ_К_ДОП - Факультет культуры и искусств (дополнительные программы)"}]
[32,"СФ_М","Факультет компьютерных наук и математики",{"$f":"IF(Таблица2[[#This Row],[Аббревиатура лицевого счета]]=\"\",\"\",IF(Таблица2[[#This Row],[Наименование лицевого счета]]=\"\",Таблица2[[#This Row],[Аббревиатура лицевого счета]],CONCATENATE(Таблица2[[#This Row],[Аббревиатура лицевого счета]],\" - \",Таблица2[[#This Row],[Наименование лицевого счета]])))","v":"СФ_М - Факультет компьютерных наук и математики"}]
[44,"СФ_Ф","Физический факультет",{"$f":"IF(Таблица2[[#This Row],[Аббревиатура лицевого счета]]=\"\",\"\",IF(Таблица2[[#This Row],[Наименование лицевого счета]]=\"\",Таблица2[[#This Row],[Аббревиатура лицевого счета]],CONCATENATE(Таблица2[[#This Row],[Аббревиатура лицевого счета]],\" - \",Таблица2[[#This Row],[Наименование лицевого счета]])))","v":"СФ_Ф - Физический факультет"}]
[50,"СФ_Х","Химический факультет",{"$f":"IF(Таблица2[[#This Row],[Аббревиатура лицевого счета]]=\"\",\"\",IF(Таблица2[[#This Row],[Наименование лицевого счета]]=\"\",Таблица2[[#This Row],[Аббревиатура лицевого счета]],CONCATENATE(Таблица2[[#This Row],[Аббревиатура лицевого счета]],\" - \",Таблица2[[#This Row],[Наименование лицевого счета]])))","v":"СФ_Х - Химический факультет"}]
[56,"СФ_Я","Факультет филологии, иностранных языков и медиакоммуникаций",{"$f":"IF(Таблица2[[#This Row],[Аббревиатура лицевого счета]]=\"\",\"\",IF(Таблица2[[#This Row],[Наименование лицевого счета]]=\"\",Таблица2[[#This Row],[Аббревиатура лицевого счета]],CONCATENATE(Таблица2[[#This Row],[Аббревиатура лицевого счета]],\" - \",Таблица2[[#This Row],[Наименование лицевого счета]])))","v":"СФ_Я - Факультет филологии, иностранных языков и медиакоммуникаций"}]
[61,"Л_ЛЦ","Лингвистический центр",{"$f":"IF(Таблица2[[#This Row],[Аббревиатура лицевого счета]]=\"\",\"\",IF(Таблица2[[#This Row],[Наименование лицевого счета]]=\"\",Таблица2[[#This Row],[Аббревиатура лицевого счета]],CONCATENATE(Таблица2[[#This Row],[Аббревиатура лицевого счета]],\" - \",Таблица2[[#This Row],[Наименование лицевого счета]])))","v":"Л_ЛЦ - Лингвистический центр"}]
[62,"Л_ДКП","Программа \"Переводчик в сфере дополнительной квалификации\"",{"$f":"IF(Таблица2[[#This Row],[Аббревиатура лицевого счета]]=\"\",\"\",CONCATENATE(Таблица2[[#This Row],[Аббревиатура лицевого счета]],\" - \",Таблица2[[#This Row],[Наименование лицевого счета]]))","v":"Л_ДКП - Программа \"Переводчик в сфере дополнительной квалификации\""}]
[63,"П_ПС","Психологическая служба",{"$f":"IF(Таблица2[[#This Row],[Аббревиатура лицевого счета]]=\"\",\"\",CONCATENATE(Таблица2[[#This Row],[Аббревиатура лицевого счета]],\" - \",Таблица2[[#This Row],[Наименование лицевого счета]]))","v":"П_ПС - Психологическая служба"}]
[64,"С_ЦЗИ","Центр защиты информации",{"$f":"IF(Таблица2[[#This Row],[Аббревиатура лицевого счета]]=\"\",\"\",CONCATENATE(Таблица2[[#This Row],[Аббревиатура лицевого счета]],\" - \",Таблица2[[#This Row],[Наименование лицевого счета]]))","v":"С_ЦЗИ - Центр защиты информации"}]
[65,"ИНОО","Институт непрерывного и открытого образования",{"$f":"IF(Таблица2[[#This Row],[Аббревиатура лицевого счета]]=\"\",\"\",IF(Таблица2[[#This Row],[Наименование лицевого счета]]=\"\",Таблица2[[#This Row],[Аббревиатура лицевого счета]],CONCATENATE(Таблица2[[#This Row],[Аббревиатура лицевого счета]],\" - \",Таблица2[[#This Row],[Наименование лицевого счета]])))","v":"ИНОО - Институт непрерывного и открытого образования"}]
[66,"ИНОО_ОЭО","Отдел электронного обучения",{"$f":"IF(Таблица2[[#This Row],[Аббревиатура лицевого счета]]=\"\",\"\",IF(Таблица2[[#This Row],[Наименование лицевого счета]]=\"\",Таблица2[[#This Row],[Аббревиатура лицевого счета]],CONCATENATE(Таблица2[[#This Row],[Аббревиатура лицевого счета]],\" - \",Таблица2[[#This Row],[Наименование лицевого счета]])))","v":"ИНОО_ОЭО - Отдел электронного обучения"}]
[67,"ИНОО_РТСУ","Российско-Таджикский (Славянский) Университет",{"$f":"IF(Таблица2[[#This Row],[Аббревиатура лицевого счета]]=\"\",\"\",CONCATENATE(Таблица2[[#This Row],[Аббревиатура лицевого счета]],\" - \",Таблица2[[#This Row],[Наименование лицевого счета]]))","v":"ИНОО_РТСУ - Российско-Таджикский (Славянский) Университет"}]
[68,"ФПК","Факультет повышения квалификации",{"$f":"IF(Таблица2[[#This Row],[Аббревиатура лицевого счета]]=\"\",\"\",IF(Таблица2[[#This Row],[Наименование лицевого счета]]=\"\",Таблица2[[#This Row],[Аббревиатура лицевого счета]],CONCATENATE(Таблица2[[#This Row],[Аббревиатура лицевого счета]],\" - \",Таблица2[[#This Row],[Наименование лицевого счета]])))","v":"ФПК - Факультет повышения квалификации"}]
[69,"ФПК_Ц","Программа комплексного экзамена по русскому языку",{"$f":"IF(Таблица2[[#This Row],[Аббревиатура лицевого счета]]=\"\",\"\",IF(Таблица2[[#This Row],[Наименование лицевого счета]]=\"\",Таблица2[[#This Row],[Аббревиатура лицевого счета]],CONCATENATE(Таблица2[[#This Row],[Аббревиатура лицевого счета]],\" - \",Таблица2[[#This Row],[Наименование лицевого счета]])))","v":"ФПК_Ц - Программа комплексного экзамена по русскому языку"}]
[70,"ОП","Подготовительное отделение для иностранных граждан",{"$f":"IF(Таблица2[[#This Row],[Аббревиатура лицевого счета]]=\"\",\"\",IF(Таблица2[[#This Row],[Наименование лицевого счета]]=\"\",Таблица2[[#This Row],[Аббревиатура лицевого счета]],CONCATENATE(Таблица2[[#This Row],[Аббревиатура лицевого счета]],\" - \",Таблица2[[#This Row],[Наименование лицевого счета]])))","v":"ОП - Подготовительное отделение для иностранных граждан"}]
[71,"ОМД","Отдел планирования и организации международной деятельности",{"$f":"IF(Таблица2[[#This Row],[Аббревиатура лицевого счета]]=\"\",\"\",IF(Таблица2[[#This Row],[Наименование лицевого счета]]=\"\",Таблица2[[#This Row],[Аббревиатура лицевого счета]],CONCATENATE(Таблица2[[#This Row],[Аббревиатура лицевого счета]],\" - \",Таблица2[[#This Row],[Наименование лицевого счета]])))","v":"ОМД - Отдел планирования и организации международной деятельности"}]
[72,"УПК"," Университетский профессиональный колледж",{"$f":"IF(Таблица2[[#This Row],[Аббревиатура лицевого счета]]=\"\",\"\",IF(Таблица2[[#This Row],[Наименование лицевого счета]]=\"\",Таблица2[[#This Row],[Аббревиатура лицевого счета]],CONCATENATE(Таблица2[[#This Row],[Аббревиатура лицевого счета]],\" - \",Таблица2[[#This Row],[Наименование лицевого счета]])))","v":"УПК -  Университетский профессиональный колледж"}]
[73,"ЦДПП","Центр довузовской подготовки",{"$f":"IF(Таблица2[[#This Row],[Аббревиатура лицевого счета]]=\"\",\"\",IF(Таблица2[[#This Row],[Наименование лицевого счета]]=\"\",Таблица2[[#This Row],[Аббревиатура лицевого счета]],CONCATENATE(Таблица2[[#This Row],[Аббревиатура лицевого счета]],\" - \",Таблица2[[#This Row],[Наименование лицевого счета]])))","v":"ЦДПП - Центр довузовской подготовки"}]
[74,"БИБЛ","Библиотека",{"$f":"IF(Таблица2[[#This Row],[Аббревиатура лицевого счета]]=\"\",\"\",IF(Таблица2[[#This Row],[Наименование лицевого счета]]=\"\",Таблица2[[#This Row],[Аббревиатура лицевого счета]],CONCATENATE(Таблица2[[#This Row],[Аббревиатура лицевого счета]],\" - \",Таблица2[[#This Row],[Наименование лицевого счета]])))","v":"БИБЛ - Библиотека"}]
[75,"ИПО","Издательство",{"$f":"IF(Таблица2[[#This Row],[Аббревиатура лицевого счета]]=\"\",\"\",IF(Таблица2[[#This Row],[Наименование лицевого счета]]=\"\",Таблица2[[#This Row],[Аббревиатура лицевого счета]],CONCATENATE(Таблица2[[#This Row],[Аббревиатура лицевого счета]],\" - \",Таблица2[[#This Row],[Наименование лицевого счета]])))","v":"ИПО - Издательство"}]
[76,"РП_РИД",null,{"$f":"IF(Таблица2[[#This Row],[Аббревиатура лицевого счета]]=\"\",\"\",IF(Таблица2[[#This Row],[Наименование лицевого счета]]=\"\",Таблица2[[#This Row],[Аббревиатура лицевого счета]],CONCATENATE(Таблица2[[#This Row],[Аббревиатура лицевого счета]],\" - \",Таблица2[[#This Row],[Наименование лицевого счета]])))","v":"РП_РИД"}]
[78,"ОК","Спортивно-оздоровительный комплекс",{"$f":"IF(Таблица2[[#This Row],[Аббревиатура лицевого счета]]=\"\",\"\",IF(Таблица2[[#This Row],[Наименование лицевого счета]]=\"\",Таблица2[[#This Row],[Аббревиатура лицевого счета]],CONCATENATE(Таблица2[[#This Row],[Аббревиатура лицевого счета]],\" - \",Таблица2[[#This Row],[Наименование лицевого счета]])))","v":"ОК - Спортивно-оздоровительный комплекс"}]
[79,"ИПШ","профшкола Факультета истории, теологии и мировых культур",{"$f":"IF(Таблица2[[#This Row],[Аббревиатура лицевого счета]]=\"\",\"\",IF(Таблица2[[#This Row],[Наименование лицевого счета]]=\"\",Таблица2[[#This Row],[Аббревиатура лицевого счета]],CONCATENATE(Таблица2[[#This Row],[Аббревиатура лицевого счета]],\" - \",Таблица2[[#This Row],[Наименование лицевого счета]])))","v":"ИПШ - профшкола Факультета истории, теологии и мировых культур"}]
[80,"ЭПШ","профшкола Факультета экономики, психологии и менеджмента",{"$f":"IF(Таблица2[[#This Row],[Аббревиатура лицевого счета]]=\"\",\"\",IF(Таблица2[[#This Row],[Наименование лицевого счета]]=\"\",Таблица2[[#This Row],[Аббревиатура лицевого счета]],CONCATENATE(Таблица2[[#This Row],[Аббревиатура лицевого счета]],\" - \",Таблица2[[#This Row],[Наименование лицевого счета]])))","v":"ЭПШ - профшкола Факультета экономики, психологии и менеджмента"}]
[81,"ХПШ","профшкола Химического факультета",{"$f":"IF(Таблица2[[#This Row],[Аббревиатура лицевого счета]]=\"\",\"\",IF(Таблица2[[#This Row],[Наименование лицевого счета]]=\"\",Таблица2[[#This Row],[Аббревиатура лицевого счета]],CONCATENATE(Таблица2[[#This Row],[Аббревиатура лицевого счета]],\" - \",Таблица2[[#This Row],[Наименование лицевого счета]])))","v":"ХПШ - профшкола Химического факультета"}]
[82,"МПШ","профшкола Факультета компьютерных наук и математики",{"$f":"IF(Таблица2[[#This Row],[Аббревиатура лицевого счета]]=\"\",\"\",IF(Таблица2[[#This Row],[Наименование лицевого счета]]=\"\",Таблица2[[#This Row],[Аббревиатура лицевого счета]],CONCATENATE(Таблица2[[#This Row],[Аббревиатура лицевого счета]],\" - \",Таблица2[[#This Row],[Наименование лицевого счета]])))","v":"МПШ - профшкола Факультета компьютерных наук и математики"}]
[83,"ФПШ","профшкола Физического факультета",{"$f":"IF(Таблица2[[#This Row],[Аббревиатура лицевого счета]]=\"\",\"\",IF(Таблица2[[#This Row],[Наименование лицевого счета]]=\"\",Таблица2[[#This Row],[Аббревиатура лицевого счета]],CONCATENATE(Таблица2[[#This Row],[Аббревиатура лицевого счета]],\" - \",Таблица2[[#This Row],[Наименование лицевого счета]])))","v":"ФПШ - профшкола Физического факультета"}]
[84,"ЯПШ","профшкола Факультет филологии, иностранных языков и медиакоммуникаций",{"$f":"IF(Таблица2[[#This Row],[Аббревиатура лицевого счета]]=\"\",\"\",IF(Таблица2[[#This Row],[Наименование лицевого счета]]=\"\",Таблица2[[#This Row],[Аббревиатура лицевого счета]],CONCATENATE(Таблица2[[#This Row],[Аббревиатура лицевого счета]],\" - \",Таблица2[[#This Row],[Наименование лицевого счета]])))","v":"ЯПШ - профшкола Факультет филологии, иностранных языков и медиакоммуникаций"}]
[85,"КПШ","профшкола Факультета культуры и искусств",{"$f":"IF(Таблица2[[#This Row],[Аббревиатура лицевого счета]]=\"\",\"\",IF(Таблица2[[#This Row],[Наименование лицевого счета]]=\"\",Таблица2[[#This Row],[Аббревиатура лицевого счета]],CONCATENATE(Таблица2[[#This Row],[Аббревиатура лицевого счета]],\" - \",Таблица2[[#This Row],[Наименование лицевого счета]])))","v":"КПШ - профшкола Факультета культуры и искусств"}]
[89,"МИБИ","Межвузовский бизнес инкубатор",{"$f":"IF(Таблица2[[#This Row],[Аббревиатура лицевого счета]]=\"\",\"\",IF(Таблица2[[#This Row],[Наименование лицевого счета]]=\"\",Таблица2[[#This Row],[Аббревиатура лицевого счета]],CONCATENATE(Таблица2[[#This Row],[Аббревиатура лицевого счета]],\" - \",Таблица2[[#This Row],[Наименование лицевого счета]])))","v":"МИБИ - Межвузовский бизнес инкубатор"}]
[90,null,null,{"$f":"IF(Таблица2[[#This Row],[Аббревиатура лицевого счета]]=\"\",\"\",IF(Таблица2[[#This Row],[Наименование лицевого счета]]=\"\",Таблица2[[#This Row],[Аббревиатура лицевого счета]],CONCATENATE(Таблица2[[#This Row],[Аббревиатура лицевого счета]],\" - \",Таблица2[[#This Row],[Наименование лицевого счета]])))","v":""}]